[Event "RUS-ch Blitz 2021"]
[Site "Sochi"]
[Date "2021.10.11"]
[Round "3.7"]
[White "Alekseev, Evgeny"]
[Black "Matinian, Nikita"]
[Result "1-0"]
[ECO "C54"]
[WhiteElo "2602"]
[BlackElo "2454"]
[Annotator "ChessBase"]
[PlyCount "57"]
[EventDate "2021.10.11"]
[EventType "blitz"]
[EventCountry "RUS"]
[SourceTitle "playchess.com"]
[Source "ChessBase"]
[SourceQuality "1"]
[TimeControl "180+2"]

1. e4 {[%emt 0:00:04]} e5 {[%emt 0:00:00]} 2. Nf3 {[%emt 0:00:00]} Nc6 {
[%emt 0:00:00]} 3. Bc4 {[%emt 0:00:03]} Nf6 {[%emt 0:00:01]} 4. d3 {[%emt 0:00:
00]} Bc5 {[%emt 0:00:00]} 5. O-O {[%emt 0:00:02]} d6 {[%emt 0:00:02]} 6. c3 {
[%emt 0:00:05]} Bb6 {[%emt 0:00:02]} 7. Bb3 {[%emt 0:00:03]} Ne7 {[%emt 0:00:
11]} 8. Nbd2 {[%emt 0:00:09]} Ng6 {[%emt 0:00:00]} 9. Nc4 {[%emt 0:00:01]} O-O
{[%emt 0:00:05]} 10. h3 {[%emt 0:00:13]} Be6 {[%emt 0:00:08]} 11. a4 {[%emt 0:
00:04]} c6 {[%emt 0:00:04]} 12. Nxb6 {[%emt 0:00:03]} Bxb3 {[%emt 0:00:27]} 13.
Qxb3 {[%emt 0:00:01]} Qxb6 {[%emt 0:00:11]} 14. Qc2 {[%emt 0:00:10]} d5 {
[%emt 0:00:03]} 15. Bg5 {[%emt 0:00:13]} Nh5 {[%emt 0:00:32]} 16. Rfe1 {
[%emt 0:00:00]} Rae8 {[%emt 0:00:09]} 17. Be3 {[%emt 0:00:16]} Qc7 {[%emt 0:00:
00]} 18. Bc5 {[%emt 0:00:00]} Ne7 {[%emt 0:00:02]} 19. exd5 {[%emt 0:00:07]}
cxd5 {[%emt 0:00:02]} 20. Rxe5 {[%emt 0:00:07]} Qxc5 {[%emt 0:00:13]} 21. Rxh5
{[%emt 0:00:00]} f5 {[%emt 0:00:05]} 22. Ng5 {[%emt 0:00:25]} Ng6 {[%emt 0:00:
14]} 23. d4 {[%emt 0:00:18]} Qd6 {[%emt 0:00:14]} 24. Nxh7 {[%emt 0:00:07]} Nf4
{[%emt 0:00:30]} 25. Nxf8 {[%emt 0:00:05]} Nxh5 {[%emt 0:00:02]} 26. Qxf5 {
[%emt 0:00:02]} Nf4 {[%emt 0:00:03]} 27. Nd7 {[%emt 0:00:18]} Re2 {[%emt 0:00:
29]} 28. Ne5 {[%emt 0:00:07]} Rxb2 {[%emt 0:00:00]} 29. Qxf4 {[%emt 0:00:02]}
1-0

[Event "RUS-ch Blitz 2021"]
[Site "Sochi"]
[Date "2021.10.11"]
[Round "3.9"]
[White "Kobalia, Mikhail"]
[Black "Khanin, Semen"]
[Result "1-0"]
[ECO "C72"]
[WhiteElo "2600"]
[BlackElo "2521"]
[Annotator "ChessBase"]
[PlyCount "105"]
[EventDate "2021.10.11"]
[EventType "blitz"]
[EventCountry "RUS"]
[SourceTitle "playchess.com"]
[Source "ChessBase"]
[SourceQuality "1"]
[TimeControl "180+2"]

1. e4 {[%emt 0:00:00]} e5 {[%emt 0:00:04]} 2. Nf3 {[%emt 0:00:02]} Nc6 {
[%emt 0:00:03]} 3. Bb5 {[%emt 0:00:00]} a6 {[%emt 0:00:03]} 4. Ba4 {[%emt 0:00:
01]} d6 {[%emt 0:00:00]} 5. O-O {[%emt 0:00:00]} Bd7 {[%emt 0:00:03]} 6. Re1 {
[%emt 0:00:10]} g5 {[%emt 0:00:06]} 7. Bxc6 {[%emt 0:00:26]} bxc6 {[%emt 0:00:
29]} 8. d4 {[%emt 0:00:00]} g4 {[%emt 0:00:00]} 9. Nfd2 {[%emt 0:00:00]} Bg7 {
[%emt 0:00:34]} 10. dxe5 {[%emt 0:00:00]} Bxe5 {[%emt 0:00:21]} 11. Nc4 {
[%emt 0:00:00]} Qf6 {[%emt 0:00:22]} 12. Nxe5 {[%emt 0:00:01]} dxe5 {[%emt 0:
00:06]} 13. Be3 {[%emt 0:00:11]} Ne7 {[%emt 0:00:00]} 14. Bc5 {[%emt 0:00:00]}
h5 {[%emt 0:00:02]} 15. Nc3 {[%emt 0:00:14]} h4 {[%emt 0:00:00]} 16. Qd3 {
[%emt 0:00:00]} Be6 {[%emt 0:00:22]} 17. Rad1 {[%emt 0:00:14]} Ng6 {[%emt 0:00:
00]} 18. Ne2 {[%emt 0:00:12]} g3 {[%emt 0:00:17]} 19. fxg3 {[%emt 0:00:06]}
hxg3 {[%emt 0:00:00]} 20. Qxg3 {[%emt 0:00:05]} Nf4 {[%emt 0:00:23]} 21. Nxf4 {
[%emt 0:00:29]} exf4 {[%emt 0:00:03]} 22. Qf3 {[%emt 0:00:00]} Qh4 {[%emt 0:00:
01]} 23. h3 {[%emt 0:00:04]} Rg8 {[%emt 0:00:00]} 24. e5 {[%emt 0:00:12]} Bd5 {
[%emt 0:00:00]} 25. Re4 {[%emt 0:00:24]} Rg3 {[%emt 0:00:08]} 26. Rxf4 {
[%emt 0:00:12]} Bxf3 {[%emt 0:00:17]} 27. Rxh4 {[%emt 0:00:00]} Rxg2+ {[%emt 0:
00:00]} 28. Kf1 {[%emt 0:00:06]} Bxd1 {[%emt 0:00:00]} 29. Kxg2 {[%emt 0:00:13]
} O-O-O {[%emt 0:00:00]} 30. Rf4 {[%emt 0:00:13]} Rd2+ {[%emt 0:00:02]} 31. Rf2
{[%emt 0:00:16]} Rxf2+ {[%emt 0:00:08]} 32. Kxf2 {[%emt 0:00:00]} Bxc2 {
[%emt 0:00:00]} 33. Ke3 {[%emt 0:00:00]} Kd7 {[%emt 0:00:03]} 34. Kf4 {[%emt 0:
00:11]} Ke6 {[%emt 0:00:00]} 35. a3 {[%emt 0:00:00]} f6 {[%emt 0:00:02]} 36.
exf6 {[%emt 0:00:02]} Kxf6 {[%emt 0:00:02]} 37. Bd4+ {[%emt 0:00:00]} Ke6 {
[%emt 0:00:04]} 38. Be5 {[%emt 0:00:00]} c5 {[%emt 0:00:03]} 39. Bxc7 {[%emt 0:
00:00]} c4 {[%emt 0:00:03]} 40. Be5 {[%emt 0:00:03]} Bd3 {[%emt 0:00:03]} 41.
Bc3 {[%emt 0:00:00]} Bc2 {[%emt 0:00:00]} 42. Ke3 {[%emt 0:00:11]} Kd5 {
[%emt 0:00:00]} 43. h4 {[%emt 0:00:00]} Bb1 {[%emt 0:00:00]} 44. h5 {[%emt 0:
00:00]} Bc2 {[%emt 0:00:03]} 45. Kf4 {[%emt 0:00:05]} Ke6 {[%emt 0:00:00]} 46.
Be1 {[%emt 0:00:00]} Bb1 {[%emt 0:00:00]} 47. Ke3 {[%emt 0:00:00]} Kd5 {
[%emt 0:00:04]} 48. Kd2 {[%emt 0:00:02]} a5 {[%emt 0:00:15]} 49. a4 {[%emt 0:
00:00]} Bf5 {[%emt 0:00:00]} 50. Ke3 {[%emt 0:00:00]} Bd7 {[%emt 0:00:00]} 51.
h6 {[%emt 0:00:09]} Bf5 {[%emt 0:00:00]} 52. Bxa5 {[%emt 0:00:00]} Bc2 {
[%emt 0:00:01]} 53. Bc3 {[%emt 0:00:00]} 1-0

[Event "RUS-ch Blitz 2021"]
[Site "Sochi"]
[Date "2021.10.11"]
[Round "3.10"]
[White "Belozerov, Andrei"]
[Black "Kokarev, Dmitry"]
[Result "1/2-1/2"]
[ECO "B52"]
[WhiteElo "2476"]
[BlackElo "2579"]
[Annotator "ChessBase"]
[PlyCount "33"]
[EventDate "2021.10.11"]
[EventType "blitz"]
[EventCountry "RUS"]
[SourceTitle "playchess.com"]
[Source "ChessBase"]
[SourceQuality "1"]
[TimeControl "180+2"]

1. e4 {[%emt 0:00:04]} c5 {[%emt 0:00:00]} 2. Nf3 {[%emt 0:00:00]} d6 {[%emt 0:
00:00]} 3. Bb5+ {[%emt 0:00:04]} Bd7 {[%emt 0:00:01]} 4. Bxd7+ {[%emt 0:00:00]}
Qxd7 {[%emt 0:00:00]} 5. c4 {[%emt 0:00:00]} Nf6 {[%emt 0:00:06]} 6. Nc3 {
[%emt 0:00:00]} Nc6 {[%emt 0:00:00]} 7. d4 {[%emt 0:00:10]} cxd4 {[%emt 0:00:
04]} 8. Nxd4 {[%emt 0:00:00]} Qg4 {[%emt 0:00:00]} 9. Qxg4 {[%emt 0:00:53]}
Nxg4 {[%emt 0:00:03]} 10. Nxc6 {[%emt 0:00:07]} bxc6 {[%emt 0:00:00]} 11. Bf4 {
[%emt 0:00:04]} g6 {[%emt 0:00:25]} 12. h3 {[%emt 0:00:19]} Bh6 {[%emt 0:00:26]
} 13. Bxh6 {[%emt 0:00:07]} Nxh6 {[%emt 0:00:00]} 14. O-O-O {[%emt 0:00:07]} f6
{[%emt 0:00:04]} 15. c5 {[%emt 0:00:16]} Nf7 {[%emt 0:00:00]} 16. cxd6 {
[%emt 0:00:08]} exd6 {[%emt 0:00:06]} 17. Rd4 {[%emt 0:00:00]} 1/2-1/2

[Event "RUS-ch Blitz 2021"]
[Site "Sochi"]
[Date "2021.10.11"]
[Round "3.11"]
[White "Zakaryan, David"]
[Black "Pridorozhni, Aleksei"]
[Result "1/2-1/2"]
[ECO "C41"]
[WhiteElo "2283"]
[BlackElo "2564"]
[Annotator "ChessBase"]
[PlyCount "105"]
[EventDate "2021.10.11"]
[EventType "blitz"]
[EventCountry "RUS"]
[SourceTitle "playchess.com"]
[Source "ChessBase"]
[SourceQuality "1"]
[TimeControl "180+2"]

1. d4 {[%emt 0:00:00]} d6 {[%emt 0:00:09]} 2. e4 {[%emt 0:00:03]} Nf6 {[%emt 0:
00:00]} 3. Nc3 {[%emt 0:00:00]} e5 {[%emt 0:00:00]} 4. Nf3 {[%emt 0:00:00]}
Nbd7 {[%emt 0:00:00]} 5. Rg1 {[%emt 0:00:00]} g6 {[%emt 0:00:12]} 6. g4 {
[%emt 0:00:06]} Bg7 {[%emt 0:00:02]} 7. Be3 {[%emt 0:00:02]} O-O {[%emt 0:00:
09]} 8. d5 {[%emt 0:00:09]} Nc5 {[%emt 0:00:07]} 9. Nd2 {[%emt 0:00:09]} a5 {
[%emt 0:00:22]} 10. Be2 {[%emt 0:00:00]} b6 {[%emt 0:00:00]} 11. h4 {[%emt 0:
00:23]} Bb7 {[%emt 0:00:10]} 12. g5 {[%emt 0:00:07]} Ne8 {[%emt 0:00:03]} 13.
Nc4 {[%emt 0:00:00]} c6 {[%emt 0:00:13]} 14. Bxc5 {[%emt 0:00:17]} dxc5 {
[%emt 0:00:08]} 15. a4 {[%emt 0:00:09]} f5 {[%emt 0:00:31]} 16. dxc6 {[%emt 0:
00:25]} Bxc6 {[%emt 0:00:00]} 17. Qxd8 {[%emt 0:00:01]} Rxd8 {[%emt 0:00:00]}
18. exf5 {[%emt 0:00:04]} gxf5 {[%emt 0:00:05]} 19. Nxb6 {[%emt 0:00:00]} Nd6 {
[%emt 0:00:16]} 20. O-O-O {[%emt 0:00:11]} e4 {[%emt 0:00:00]} 21. Nc4 {
[%emt 0:00:00]} Nxc4 {[%emt 0:00:08]} 22. Bxc4+ {[%emt 0:00:00]} Kh8 {[%emt 0:
00:00]} 23. Nb5 {[%emt 0:00:35]} Be5 {[%emt 0:00:05]} 24. c3 {[%emt 0:00:08]}
Kg7 {[%emt 0:00:14]} 25. Kc2 {[%emt 0:00:02]} f4 {[%emt 0:00:14]} 26. h5 {
[%emt 0:00:08]} f3 {[%emt 0:00:18]} 27. g6 {[%emt 0:00:38]} Bf4 {[%emt 0:00:12]
} 28. gxh7+ {[%emt 0:00:00]} Kxh7 {[%emt 0:00:00]} 29. Rxd8 {[%emt 0:00:10]}
Rxd8 {[%emt 0:00:00]} 30. Rd1 {[%emt 0:00:02]} Rxd1 {[%emt 0:00:10]} 31. Kxd1 {
[%emt 0:00:00]} Kh6 {[%emt 0:00:03]} 32. b3 {[%emt 0:00:08]} Kxh5 {[%emt 0:00:
00]} 33. Na7 {[%emt 0:00:02]} Bb7 {[%emt 0:00:01]} 34. Bb5 {[%emt 0:00:02]} Be5
{[%emt 0:00:12]} 35. Kc2 {[%emt 0:00:07]} Kg4 {[%emt 0:00:00]} 36. Nc6 {
[%emt 0:00:01]} Bc7 {[%emt 0:00:05]} 37. Ne7 {[%emt 0:00:00]} Bd6 {[%emt 0:00:
02]} 38. Nc6 {[%emt 0:00:06]} Kh3 {[%emt 0:00:00]} 39. Kd2 {[%emt 0:00:02]} Kg2
{[%emt 0:00:01]} 40. Ke1 {[%emt 0:00:02]} Bxc6 {[%emt 0:00:03]} 41. Bxc6 {
[%emt 0:00:01]} e3 {[%emt 0:00:02]} 42. fxe3 {[%emt 0:00:02]} Be5 {[%emt 0:00:
00]} 43. Kd2 {[%emt 0:00:00]} Kg3 {[%emt 0:00:04]} 44. Bb5 {[%emt 0:00:05]} f2
{[%emt 0:00:00]} 45. Bf1 {[%emt 0:00:02]} Kf3 {[%emt 0:00:02]} 46. b4 {[%emt 0:
00:01]} cxb4 {[%emt 0:00:00]} 47. cxb4 {[%emt 0:00:02]} axb4 {[%emt 0:00:00]}
48. a5 {[%emt 0:00:00]} Bb8 {[%emt 0:00:06]} 49. Kc2 {[%emt 0:00:00]} Kxe3 {
[%emt 0:00:00]} 50. Kb3 {[%emt 0:00:00]} Bd6 {[%emt 0:00:00]} 51. a6 {[%emt 0:
00:04]} Bc5 {[%emt 0:00:00]} 52. a7 {[%emt 0:00:00]} Bxa7 {[%emt 0:00:00]} 53.
Kxb4 {[%emt 0:00:00]} 1/2-1/2

[Event "RUS-ch Blitz 2021"]
[Site "Sochi"]
[Date "2021.10.11"]
[Round "3.12"]
[White "Antipov, Mikhail Al."]
[Black "Shubin, Kirill"]
[Result "1/2-1/2"]
[ECO "C02"]
[WhiteElo "2619"]
[BlackElo "2463"]
[Annotator "ChessBase"]
[PlyCount "91"]
[EventDate "2021.10.11"]
[EventType "blitz"]
[EventCountry "RUS"]
[SourceTitle "playchess.com"]
[Source "ChessBase"]
[SourceQuality "1"]
[TimeControl "180+2"]

1. e4 {[%emt 0:00:00]} e6 {[%emt 0:00:00]} 2. d4 {[%emt 0:00:05]} d5 {[%emt 0:
00:02]} 3. e5 {[%emt 0:00:00]} c5 {[%emt 0:00:00]} 4. c3 {[%emt 0:00:00]} Qa5 {
[%emt 0:00:06]} 5. Nf3 {[%emt 0:00:22]} Nc6 {[%emt 0:00:00]} 6. Bd3 {[%emt 0:
00:13]} cxd4 {[%emt 0:00:08]} 7. O-O {[%emt 0:00:00]} Bd7 {[%emt 0:00:02]} 8.
a3 {[%emt 0:00:19]} dxc3 {[%emt 0:00:16]} 9. Nxc3 {[%emt 0:00:00]} Rc8 {
[%emt 0:00:08]} 10. Bg5 {[%emt 0:00:18]} a6 {[%emt 0:00:20]} 11. b4 {[%emt 0:
00:04]} Qc7 {[%emt 0:00:00]} 12. Rc1 {[%emt 0:00:05]} h6 {[%emt 0:00:14]} 13.
Bf4 {[%emt 0:00:05]} b5 {[%emt 0:00:28]} 14. a4 {[%emt 0:00:21]} Bxb4 {[%emt 0:
00:28]} 15. axb5 {[%emt 0:00:07]} axb5 {[%emt 0:00:00]} 16. Nxb5 {[%emt 0:00:
25]} Qd8 {[%emt 0:00:13]} 17. Qb3 {[%emt 0:00:31]} Nge7 {[%emt 0:00:13]} 18.
Bd2 {[%emt 0:00:24]} Bxd2 {[%emt 0:00:00]} 19. Nd6+ {[%emt 0:00:03]} Kf8 {
[%emt 0:00:01]} 20. Nxd2 {[%emt 0:00:05]} Rb8 {[%emt 0:00:00]} 21. Qc3 {
[%emt 0:00:04]} g6 {[%emt 0:00:11]} 22. Nb3 {[%emt 0:00:04]} Kg7 {[%emt 0:00:
24]} 23. Nc5 {[%emt 0:00:00]} Bc8 {[%emt 0:00:05]} 24. Rfe1 {[%emt 0:00:06]}
Qa5 {[%emt 0:00:09]} 25. Qc2 {[%emt 0:00:08]} Nd4 {[%emt 0:00:10]} 26. Qd1 {
[%emt 0:00:00]} Nec6 {[%emt 0:00:00]} 27. Qg4 {[%emt 0:00:03]} Rb2 {[%emt 0:00:
03]} 28. Qf4 {[%emt 0:00:03]} Rf8 {[%emt 0:00:06]} 29. h4 {[%emt 0:00:00]} Qd8
{[%emt 0:00:04]} 30. Rcd1 {[%emt 0:00:05]} Qe7 {[%emt 0:00:07]} 31. Bf1 {
[%emt 0:00:00]} Nb3 {[%emt 0:00:03]} 32. Nd3 {[%emt 0:00:00]} Ra2 {[%emt 0:00:
02]} 33. Qg3 {[%emt 0:00:02]} Nbd4 {[%emt 0:00:00]} 34. Nf4 {[%emt 0:00:06]}
Kh7 {[%emt 0:00:00]} 35. Qd3 {[%emt 0:00:02]} Nf5 {[%emt 0:00:00]} 36. h5 {
[%emt 0:00:02]} Qg5 {[%emt 0:00:00]} 37. hxg6+ {[%emt 0:00:00]} fxg6 {[%emt 0:
00:07]} 38. Nh3 {[%emt 0:00:00]} Qh4 {[%emt 0:00:00]} 39. Nxf5 {[%emt 0:00:06]}
Rxf5 {[%emt 0:00:00]} 40. Rc1 {[%emt 0:00:01]} Bd7 {[%emt 0:00:07]} 41. Qb5 {
[%emt 0:00:00]} Rfxf2 {[%emt 0:00:01]} 42. Nxf2 {[%emt 0:00:03]} Qxf2+ {
[%emt 0:00:03]} 43. Kh1 {[%emt 0:00:01]} Qh4+ {[%emt 0:00:01]} 44. Kg1 {
[%emt 0:00:01]} Qf2+ {[%emt 0:00:03]} 45. Kh1 {[%emt 0:00:00]} Qh4+ {[%emt 0:
00:03]} 46. Kg1 {[%emt 0:00:01]} 1/2-1/2

[Event "RUS-ch Blitz 2021"]
[Site "Sochi"]
[Date "2021.10.11"]
[Round "3.13"]
[White "Gutenev, Alexander"]
[Black "Afanasiev, Nikita"]
[Result "0-1"]
[ECO "B06"]
[WhiteElo "2455"]
[BlackElo "2560"]
[Annotator "ChessBase"]
[PlyCount "90"]
[EventDate "2021.10.11"]
[EventType "blitz"]
[EventCountry "RUS"]
[SourceTitle "playchess.com"]
[Source "ChessBase"]
[SourceQuality "1"]
[TimeControl "180+2"]

1. e4 {[%emt 0:00:00]} g6 {[%emt 0:00:04]} 2. d4 {[%emt 0:00:03]} Bg7 {[%emt 0:
00:03]} 3. Nf3 {[%emt 0:00:00]} a6 {[%emt 0:00:00]} 4. a4 {[%emt 0:00:00]} d6 {
[%emt 0:00:01]} 5. Be2 {[%emt 0:00:08]} b6 {[%emt 0:00:00]} 6. O-O {[%emt 0:00:
03]} e6 {[%emt 0:00:02]} 7. Nc3 {[%emt 0:00:09]} Nd7 {[%emt 0:00:01]} 8. h3 {
[%emt 0:00:08]} Ne7 {[%emt 0:00:08]} 9. Be3 {[%emt 0:00:21]} Bb7 {[%emt 0:00:
02]} 10. Qd2 {[%emt 0:00:03]} h6 {[%emt 0:00:00]} 11. Rfe1 {[%emt 0:00:04]} Nf6
{[%emt 0:00:08]} 12. Bd3 {[%emt 0:00:04]} d5 {[%emt 0:00:00]} 13. Bf4 {[%emt 0:
00:17]} c5 {[%emt 0:00:39]} 14. dxc5 {[%emt 0:00:28]} bxc5 {[%emt 0:00:09]} 15.
exd5 {[%emt 0:00:00]} Nexd5 {[%emt 0:00:29]} 16. Be5 {[%emt 0:00:21]} O-O {
[%emt 0:00:09]} 17. Nxd5 {[%emt 0:00:01]} exd5 {[%emt 0:00:24]} 18. Qf4 {
[%emt 0:00:37]} Re8 {[%emt 0:00:13]} 19. Rad1 {[%emt 0:00:18]} Qb6 {[%emt 0:00:
11]} 20. b3 {[%emt 0:00:09]} Qc6 {[%emt 0:00:18]} 21. Bf1 {[%emt 0:00:07]} Rad8
{[%emt 0:00:10]} 22. Bc7 {[%emt 0:00:03]} Rc8 {[%emt 0:00:15]} 23. Be5 {
[%emt 0:00:06]} Re6 {[%emt 0:00:04]} 24. Ba1 {[%emt 0:00:10]} Rce8 {[%emt 0:00:
11]} 25. Rxe6 {[%emt 0:00:00]} Rxe6 {[%emt 0:00:00]} 26. Re1 {[%emt 0:00:00]}
Rxe1 {[%emt 0:00:06]} 27. Nxe1 {[%emt 0:00:00]} d4 {[%emt 0:00:03]} 28. Nd3 {
[%emt 0:00:06]} Nd5 {[%emt 0:00:04]} 29. Qf3 {[%emt 0:00:07]} Bc8 {[%emt 0:00:
04]} 30. Bb2 {[%emt 0:00:00]} Qd6 {[%emt 0:00:02]} 31. Ba3 {[%emt 0:00:00]} Nb4
{[%emt 0:00:00]} 32. Bxb4 {[%emt 0:00:00]} cxb4 {[%emt 0:00:04]} 33. Qa8 {
[%emt 0:00:02]} Qc7 {[%emt 0:00:02]} 34. Nxb4 {[%emt 0:00:02]} Kh7 {[%emt 0:00:
00]} 35. Bxa6 {[%emt 0:00:07]} Be6 {[%emt 0:00:01]} 36. Bd3 {[%emt 0:00:06]}
Qc3 {[%emt 0:00:00]} 37. Nc6 {[%emt 0:00:04]} Bd5 {[%emt 0:00:01]} 38. Bb5 {
[%emt 0:00:02]} Qe1+ {[%emt 0:00:00]} 39. Bf1 {[%emt 0:00:00]} d3 {[%emt 0:00:
06]} 40. cxd3 {[%emt 0:00:03]} Bd4 {[%emt 0:00:00]} 41. Qd8 {[%emt 0:00:00]}
Qxf2+ {[%emt 0:00:02]} 42. Kh2 {[%emt 0:00:02]} Bxc6 {[%emt 0:00:00]} 43. Qc7 {
[%emt 0:00:04]} Bd5 {[%emt 0:00:00]} 44. Qd7 {[%emt 0:00:01]} Be6 {[%emt 0:00:
05]} 45. Qd6 {[%emt 0:00:03]} Be3 {[%emt 0:00:00]} 0-1

[Event "RUS-ch Blitz 2021"]
[Site "Sochi"]
[Date "2021.10.11"]
[Round "3.14"]
[White "Mikhailovsky, Vladimir"]
[Black "Rozum, Ivan"]
[Result "0-1"]
[ECO "A12"]
[WhiteElo "2184"]
[BlackElo "2529"]
[Annotator "ChessBase"]
[PlyCount "88"]
[EventDate "2021.10.11"]
[EventType "blitz"]
[EventCountry "RUS"]
[SourceTitle "playchess.com"]
[Source "ChessBase"]
[SourceQuality "1"]
[TimeControl "180+2"]

1. b3 {[%emt 0:00:00]} d5 {[%emt 0:00:04]} 2. Bb2 {[%emt 0:00:01]} c6 {[%emt 0:
00:00]} 3. Nf3 {[%emt 0:00:07]} Bg4 {[%emt 0:00:00]} 4. e3 {[%emt 0:00:00]} Nd7
{[%emt 0:00:00]} 5. Be2 {[%emt 0:00:01]} Ngf6 {[%emt 0:00:03]} 6. O-O {[%emt 0:
00:04]} e6 {[%emt 0:00:00]} 7. c4 {[%emt 0:00:02]} Bd6 {[%emt 0:00:03]} 8. Nc3
{[%emt 0:00:02]} O-O {[%emt 0:00:03]} 9. d4 {[%emt 0:00:03]} h6 {[%emt 0:00:09]
} 10. Rc1 {[%emt 0:00:04]} Qe7 {[%emt 0:00:05]} 11. Qc2 {[%emt 0:00:06]} Bf5 {
[%emt 0:00:02]} 12. Bd3 {[%emt 0:00:07]} Bxd3 {[%emt 0:00:03]} 13. Qxd3 {
[%emt 0:00:00]} Ba3 {[%emt 0:00:08]} 14. Rb1 {[%emt 0:00:20]} Bxb2 {[%emt 0:00:
07]} 15. Rxb2 {[%emt 0:00:00]} Rad8 {[%emt 0:00:07]} 16. cxd5 {[%emt 0:00:14]}
exd5 {[%emt 0:00:11]} 17. b4 {[%emt 0:00:00]} b5 {[%emt 0:00:06]} 18. a4 {
[%emt 0:00:08]} a6 {[%emt 0:00:04]} 19. Ra1 {[%emt 0:00:28]} Nb6 {[%emt 0:00:
10]} 20. axb5 {[%emt 0:00:08]} axb5 {[%emt 0:00:00]} 21. Ne5 {[%emt 0:00:17]}
Qb7 {[%emt 0:00:18]} 22. Rba2 {[%emt 0:00:07]} Ra8 {[%emt 0:00:00]} 23. h3 {
[%emt 0:00:16]} Nc4 {[%emt 0:00:05]} 24. Ne2 {[%emt 0:00:12]} Rfe8 {[%emt 0:00:
13]} 25. Nf3 {[%emt 0:00:57]} Ne4 {[%emt 0:00:06]} 26. Nc3 {[%emt 0:00:04]}
Rxa2 {[%emt 0:00:32]} 27. Rxa2 {[%emt 0:00:00]} Qe7 {[%emt 0:00:00]} 28. Ra6 {
[%emt 0:00:08]} Qxb4 {[%emt 0:00:04]} 29. Ne2 {[%emt 0:00:00]} Qd6 {[%emt 0:00:
09]} 30. Nf4 {[%emt 0:00:00]} Qc7 {[%emt 0:00:08]} 31. Qb3 {[%emt 0:00:02]} Qb7
{[%emt 0:00:03]} 32. Ra1 {[%emt 0:00:02]} Ra8 {[%emt 0:00:12]} 33. Rc1 {
[%emt 0:00:03]} Qe7 {[%emt 0:00:08]} 34. Nd3 {[%emt 0:00:00]} Ra3 {[%emt 0:00:
04]} 35. Qd1 {[%emt 0:00:02]} Ra2 {[%emt 0:00:03]} 36. Nfe5 {[%emt 0:00:05]}
Qd6 {[%emt 0:00:13]} 37. Qe1 {[%emt 0:00:00]} Ra3 {[%emt 0:00:17]} 38. f3 {
[%emt 0:00:00]} Nf6 {[%emt 0:00:08]} 39. Nb4 {[%emt 0:00:05]} Rxe3 {[%emt 0:00:
00]} 40. Qf2 {[%emt 0:00:02]} Qxb4 {[%emt 0:00:01]} 41. Nxc4 {[%emt 0:00:00]}
Rc3 {[%emt 0:00:10]} 42. Rxc3 {[%emt 0:00:00]} Qxc3 {[%emt 0:00:00]} 43. Ne5 {
[%emt 0:00:03]} b4 {[%emt 0:00:03]} 44. Kh2 {[%emt 0:00:04]} b3 {[%emt 0:00:00]
} 0-1

[Event "RUS-ch Blitz 2021"]
[Site "Sochi"]
[Date "2021.10.11"]
[Round "3.15"]
[White "Popov, Valerij"]
[Black "Lobanov, Sergei"]
[Result "1/2-1/2"]
[ECO "A11"]
[WhiteElo "2537"]
[BlackElo "2501"]
[Annotator "ChessBase"]
[PlyCount "114"]
[EventDate "2021.10.11"]
[EventType "blitz"]
[EventCountry "RUS"]
[SourceTitle "playchess.com"]
[Source "ChessBase"]
[SourceQuality "1"]
[TimeControl "180+2"]

1. c4 {[%emt 0:00:00]} c6 {[%emt 0:00:00]} 2. Nf3 {[%emt 0:00:05]} d5 {[%emt 0:
00:02]} 3. e3 {[%emt 0:00:00]} Nf6 {[%emt 0:00:08]} 4. Nc3 {[%emt 0:00:00]} e6
{[%emt 0:00:05]} 5. b3 {[%emt 0:00:00]} Nbd7 {[%emt 0:00:04]} 6. Qc2 {[%emt 0:
00:01]} Bd6 {[%emt 0:00:04]} 7. Bb2 {[%emt 0:00:01]} Qe7 {[%emt 0:00:04]} 8.
Be2 {[%emt 0:00:16]} O-O {[%emt 0:00:04]} 9. d4 {[%emt 0:00:06]} e5 {[%emt 0:
00:28]} 10. dxe5 {[%emt 0:00:11]} Nxe5 {[%emt 0:00:00]} 11. cxd5 {[%emt 0:00:
02]} cxd5 {[%emt 0:00:04]} 12. O-O {[%emt 0:00:18]} Bg4 {[%emt 0:00:00]} 13.
Nd4 {[%emt 0:00:11]} Rac8 {[%emt 0:00:20]} 14. Nf5 {[%emt 0:00:25]} Bxf5 {
[%emt 0:00:00]} 15. Qxf5 {[%emt 0:00:00]} Qe6 {[%emt 0:00:23]} 16. Qxe6 {
[%emt 0:00:14]} fxe6 {[%emt 0:00:04]} 17. Rac1 {[%emt 0:00:00]} a6 {[%emt 0:00:
21]} 18. h3 {[%emt 0:00:11]} Rc6 {[%emt 0:00:26]} 19. Na4 {[%emt 0:00:53]} Rfc8
{[%emt 0:00:00]} 20. Rxc6 {[%emt 0:00:03]} Rxc6 {[%emt 0:00:02]} 21. Nc3 {
[%emt 0:00:04]} Ned7 {[%emt 0:00:16]} 22. Rc1 {[%emt 0:00:16]} Kf7 {[%emt 0:00:
03]} 23. Bd3 {[%emt 0:00:12]} Nc5 {[%emt 0:00:25]} 24. Bb1 {[%emt 0:00:00]}
Nce4 {[%emt 0:00:09]} 25. Nxe4 {[%emt 0:00:00]} Rxc1+ {[%emt 0:00:02]} 26. Bxc1
{[%emt 0:00:01]} Nxe4 {[%emt 0:00:04]} 27. Bb2 {[%emt 0:00:05]} e5 {[%emt 0:00:
16]} 28. Bd3 {[%emt 0:00:00]} Nf6 {[%emt 0:00:00]} 29. Kf1 {[%emt 0:00:01]} Ke6
{[%emt 0:00:04]} 30. f3 {[%emt 0:00:02]} Bc5 {[%emt 0:00:00]} 31. Ke2 {[%emt 0:
00:00]} g6 {[%emt 0:00:01]} 32. a3 {[%emt 0:00:05]} Nd7 {[%emt 0:00:03]} 33.
Bc2 {[%emt 0:00:00]} Nf6 {[%emt 0:00:00]} 34. b4 {[%emt 0:00:06]} Bd6 {[%emt 0:
00:01]} 35. Bb3 {[%emt 0:00:00]} Ke7 {[%emt 0:00:00]} 36. g4 {[%emt 0:00:00]}
h6 {[%emt 0:00:06]} 37. Bc3 {[%emt 0:00:00]} Kd7 {[%emt 0:00:03]} 38. f4 {
[%emt 0:00:00]} d4 {[%emt 0:00:00]} 39. fxe5 {[%emt 0:00:05]} dxc3 {[%emt 0:00:
00]} 40. exf6 {[%emt 0:00:04]} Be5 {[%emt 0:00:00]} 41. f7 {[%emt 0:00:00]} Ke7
{[%emt 0:00:03]} 42. Kd3 {[%emt 0:00:00]} g5 {[%emt 0:00:00]} 43. a4 {[%emt 0:
00:04]} b6 {[%emt 0:00:02]} 44. a5 {[%emt 0:00:00]} bxa5 {[%emt 0:00:03]} 45.
bxa5 {[%emt 0:00:00]} Bc7 {[%emt 0:00:00]} 46. Bc4 {[%emt 0:00:02]} Bxa5 {
[%emt 0:00:03]} 47. e4 {[%emt 0:00:00]} Bb4 {[%emt 0:00:00]} 48. Kc2 {[%emt 0:
00:00]} a5 {[%emt 0:00:05]} 49. e5 {[%emt 0:00:00]} Kf8 {[%emt 0:00:03]} 50. e6
{[%emt 0:00:01]} Ke7 {[%emt 0:00:00]} 51. Bb3 {[%emt 0:00:00]} Kf8 {[%emt 0:00:
02]} 52. Kd3 {[%emt 0:00:00]} Ke7 {[%emt 0:00:00]} 53. Ba2 {[%emt 0:00:05]} Kf6
{[%emt 0:00:01]} 54. Bc4 {[%emt 0:00:00]} Ke5 {[%emt 0:00:00]} 55. Bb3 {
[%emt 0:00:06]} Kf6 {[%emt 0:00:00]} 56. Ke4 {[%emt 0:00:03]} a4 {[%emt 0:00:
07]} 57. Bxa4 {[%emt 0:00:00]} Kxe6 {[%emt 0:00:02]} 1/2-1/2